[Event "*** Qualifier 3: Titled Tuesday 3|2 Blitz"]
[Site "Chess.com"]
[Date "2017.04.18"]
[Round "2"]
[White "tihanaivekovic223"]
[Black "Saitama_Hero"]
[Result "0-1"]
[WhiteElo "2007"]
[BlackElo "2170"]
[TimeControl "180+2"]
[EndTime "13:22:20 PDT"]
[Termination "Saitama_Hero won by resignation"]

1. e4 {[%clk 0:03:02]} 1... c5 {[%clk 0:02:59.8]} 2. Nf3 {[%clk 0:03:03]} 2...
g6 {[%clk 0:03:01.6]} 3. d4 {[%clk 0:03:04.6]} 3... cxd4 {[%clk 0:03:03.3]} 4.
Qxd4 {[%clk 0:03:05.8]} 4... Nf6 {[%clk 0:03:02.8]} 5. Nc3 {[%clk 0:03:07.1]}
5... Nc6 {[%clk 0:03:03.2]} 6. Qa4 {[%clk 0:03:08.7]} 6... d6 {[%clk 0:03:00.8]}
7. e5 {[%clk 0:03:10.2]} 7... dxe5 {[%clk 0:03:02.4]} 8. Nxe5 {[%clk 0:03:12]}
8... Qd4 {[%clk 0:03:03.4]} 9. Nxc6 {[%clk 0:03:05.8]} 9... Qxa4 {[%clk
0:03:02.6]} 10. Nxa4 {[%clk 0:03:07.7]} 10... bxc6 {[%clk 0:03:03]} 11. Bd2
{[%clk 0:03:03.5]} 11... Bf5 {[%clk 0:02:31.8]} 12. O-O-O {[%clk 0:03:01.4]}
12... Bg7 {[%clk 0:02:28.5]} 13. Bc3 {[%clk 0:03:02.1]} 13... Bh6+ {[%clk
0:02:26.8]} 14. Kb1 {[%clk 0:03:01.3]} 14... O-O {[%clk 0:02:26.3]} 15. Nc5
{[%clk 0:03:01.1]} 15... Nd5 {[%clk 0:02:24.9]} 16. Bd4 {[%clk 0:02:52.7]} 16...
Rfd8 {[%clk 0:02:19.6]} 17. Bc4 {[%clk 0:02:51.8]} 17... f6 {[%clk 0:01:53.4]}
18. f3 {[%clk 0:02:20]} 18... Kh8 {[%clk 0:01:48.4]} 19. g4 {[%clk 0:02:13]}
19... Bc8 {[%clk 0:01:46.8]} 20. Rhe1 {[%clk 0:02:13.4]} 20... e5 {[%clk
0:01:46]} 21. Bf2 {[%clk 0:02:14.2]} 21... Bf8 {[%clk 0:01:37.1]} 22. Nd3 {[%clk
0:02:00.3]} 22... Rb8 {[%clk 0:01:32.9]} 23. Bh4 {[%clk 0:01:58.6]} 23... g5
{[%clk 0:01:30.5]} 24. Bg3 {[%clk 0:01:58.6]} 24... Nc3+ {[%clk 0:01:30.7]} 25.
Ka1 {[%clk 0:01:54.1]} 25... Nxd1 {[%clk 0:01:32.6]} 26. Rxd1 {[%clk 0:01:50.1]}
26... Rb4 {[%clk 0:01:31.6]} 27. Bb3 {[%clk 0:01:47.7]} 27... c5 {[%clk
0:01:31]} 28. c4 {[%clk 0:01:38]} 28... Rb6 {[%clk 0:01:20]} 29. Bf2 {[%clk
0:01:38.9]} 29... Rbd6 {[%clk 0:01:20]} 30. Bc2 {[%clk 0:01:37.8]} 30... R6d7
{[%clk 0:01:03.6]} 31. Kb1 {[%clk 0:01:29.5]} 31... Bb7 {[%clk 0:01:04.6]} 32.
Kc1 {[%clk 0:01:24.4]} 32... Bxf3 {[%clk 0:01:04.3]} 33. Rd2 {[%clk 0:01:25.7]}
33... e4 {[%clk 0:01:01.8]} 0-1

[Event "*** Qualifier 3: Titled Tuesday 3|2 Blitz"]
[Site "Chess.com"]
[Date "2017.04.18"]
[Round "2"]
[White "chessdude"]
[Black "popov_m"]
[Result "0-1"]
[WhiteElo "2409"]
[BlackElo "2417"]
[TimeControl "180+2"]
[EndTime "13:22:36 PDT"]
[Termination "popov_m won by resignation"]

1. e4 {[%clk 0:03:02]} 1... g6 {[%clk 0:02:58.1]} 2. d4 {[%clk 0:03:02.2]} 2...
Bg7 {[%clk 0:02:59.8]} 3. Nc3 {[%clk 0:03:03.6]} 3... d6 {[%clk 0:03:01.3]} 4.
f4 {[%clk 0:03:04.5]} 4... Nf6 {[%clk 0:02:59.1]} 5. Bd3 {[%clk 0:03:04.4]} 5...
O-O {[%clk 0:02:58.2]} 6. Nf3 {[%clk 0:03:05.4]} 6... Na6 {[%clk 0:02:59.6]} 7.
O-O {[%clk 0:03:06]} 7... c5 {[%clk 0:02:59.6]} 8. d5 {[%clk 0:03:07.4]} 8...
Bg4 {[%clk 0:02:58.2]} 9. h3 {[%clk 0:03:03.2]} 9... Bxf3 {[%clk 0:02:57.8]} 10.
Qxf3 {[%clk 0:03:04.9]} 10... Nc7 {[%clk 0:02:59.5]} 11. Bc4 {[%clk 0:03:03.2]}
11... a6 {[%clk 0:02:58.4]} 12. a4 {[%clk 0:03:04]} 12... e6 {[%clk 0:02:49.9]}
13. dxe6 {[%clk 0:02:58.9]} 13... Nxe6 {[%clk 0:02:51.8]} 14. Qd3 {[%clk
0:02:55.6]} 14... Nd4 {[%clk 0:02:46.5]} 15. Be3 {[%clk 0:02:56]} 15... b5
{[%clk 0:02:29.4]} 16. axb5 {[%clk 0:02:40.7]} 16... axb5 {[%clk 0:02:31.3]} 17.
Rxa8 {[%clk 0:02:41.5]} 17... Qxa8 {[%clk 0:02:28.4]} 18. Nxb5 {[%clk
0:02:41.3]} 18... Nxb5 {[%clk 0:02:27.1]} 19. Bxb5 {[%clk 0:02:43.2]} 19... Nxe4
{[%clk 0:02:27.9]} 20. c3 {[%clk 0:02:42.6]} 20... d5 {[%clk 0:01:56.2]} 21. f5
{[%clk 0:02:25.6]} 21... c4 {[%clk 0:01:18.1]} 22. Qd1 {[%clk 0:02:14.8]} 22...
Rb8 {[%clk 0:01:16.5]} 23. Ba4 {[%clk 0:02:05.6]} 23... Rxb2 {[%clk 0:01:15]}
24. fxg6 {[%clk 0:02:00.9]} 24... hxg6 {[%clk 0:01:15]} 25. Bc2 {[%clk
0:01:45.7]} 25... Nxc3 {[%clk 0:01:07.6]} 26. Qf3 {[%clk 0:01:46.4]} 26... Qb7
{[%clk 0:00:41.9]} 27. Rf2 {[%clk 0:01:33.9]} 27... d4 {[%clk 0:00:37.2]} 28.
Qxb7 {[%clk 0:01:29.4]} 28... Rxb7 {[%clk 0:00:36.9]} 29. Bg5 {[%clk 0:01:25.4]}
29... d3 {[%clk 0:00:37.1]} 30. Kh2 {[%clk 0:01:25.7]} 30... Be5+ {[%clk
0:00:35.3]} 31. g3 {[%clk 0:01:24.5]} 31... Bxg3+ {[%clk 0:00:29.7]} 0-1

[Event "*** Qualifier 3: Titled Tuesday 3|2 Blitz"]
[Site "Chess.com"]
[Date "2017.04.18"]
[Round "2"]
[White "CM_FM_IM_GM"]
[Black "Quiet_Desperation"]
[Result "0-1"]
[WhiteElo "1997"]
[BlackElo "2029"]
[TimeControl "180+2"]
[EndTime "13:22:44 PDT"]
[Termination "Quiet_Desperation won on time"]

1. d4 {[%clk 0:03:01.9]} 1... Nf6 {[%clk 0:03:00.7]} 2. c4 {[%clk 0:03:02.2]}
2... e6 {[%clk 0:03:02.3]} 3. Nf3 {[%clk 0:03:02.6]} 3... Bb4+ {[%clk
0:03:03.9]} 4. Bd2 {[%clk 0:03:03.1]} 4... Qe7 {[%clk 0:03:05]} 5. e3 {[%clk
0:03:01.8]} 5... b6 {[%clk 0:03:05.8]} 6. Bd3 {[%clk 0:03:01.8]} 6... Bb7 {[%clk
0:03:04.1]} 7. O-O {[%clk 0:03:02.4]} 7... Bxd2 {[%clk 0:03:04.4]} 8. Nbxd2
{[%clk 0:03:03]} 8... d6 {[%clk 0:03:05.1]} 9. Qc2 {[%clk 0:03:03.8]} 9... O-O
{[%clk 0:03:05.9]} 10. Rad1 {[%clk 0:03:03.4]} 10... Nbd7 {[%clk 0:03:07.4]} 11.
Rfe1 {[%clk 0:03:04.4]} 11... e5 {[%clk 0:03:08.1]} 12. dxe5 {[%clk 0:03:02.5]}
12... dxe5 {[%clk 0:03:09.1]} 13. e4 {[%clk 0:03:03]} 13... a5 {[%clk
0:03:09.6]} 14. Nf1 {[%clk 0:02:55.6]} 14... Nc5 {[%clk 0:03:10.8]} 15. Ng3
{[%clk 0:02:46.4]} 15... g6 {[%clk 0:03:09.6]} 16. Qc3 {[%clk 0:02:32.1]} 16...
Rfe8 {[%clk 0:03:02.9]} 17. Bb1 {[%clk 0:02:32.3]} 17... Ng4 {[%clk 0:02:42]}
18. h3 {[%clk 0:02:14.4]} 18... Nf6 {[%clk 0:02:31.2]} 19. a3 {[%clk 0:01:27.8]}
19... a4 {[%clk 0:02:30.4]} 20. Qc2 {[%clk 0:01:22.1]} 20... Rad8 {[%clk
0:02:26.4]} 21. Rxd8 {[%clk 0:01:21.2]} 21... Rxd8 {[%clk 0:02:25.6]} 22. Qc3
{[%clk 0:01:17.6]} 22... Re8 {[%clk 0:02:21]} 23. Qb4 {[%clk 0:01:10.6]} 23...
h5 {[%clk 0:02:03.4]} 24. h4 {[%clk 0:01:02.7]} 24... Ng4 {[%clk 0:01:53.3]} 25.
Bc2 {[%clk 0:00:43.5]} 25... Qf6 {[%clk 0:01:47.5]} 26. Bxa4 {[%clk 0:00:34.2]}
26... Rd8 {[%clk 0:01:45.3]} 27. Bc2 {[%clk 0:00:27.8]} 27... Ne6 {[%clk
0:01:40.1]} 28. Rd1 {[%clk 0:00:14.4]} 28... Nd4 {[%clk 0:01:35.3]} 29. Qc3
{[%clk 0:00:07.2]} 29... Qf4 {[%clk 0:01:22.9]} 0-1

[Event "*** Qualifier 3: Titled Tuesday 3|2 Blitz"]
[Site "Chess.com"]
[Date "2017.04.18"]
[Round "2"]
[White "blitzcopter"]
[Black "FearNoEvil12"]
[Result "1-0"]
[WhiteElo "2133"]
[BlackElo "2103"]
[TimeControl "180+2"]
[EndTime "13:22:46 PDT"]
[Termination "blitzcopter won by resignation"]

1. e4 {[%clk 0:03:01.9]} 1... Nf6 {[%clk 0:03:00.1]} 2. e5 {[%clk 0:03:00.7]}
2... Nd5 {[%clk 0:03:00.9]} 3. c4 {[%clk 0:02:58.1]} 3... Nb6 {[%clk 0:03:00.8]}
4. d4 {[%clk 0:03:00]} 4... d6 {[%clk 0:03:01.2]} 5. exd6 {[%clk 0:03:01.9]}
5... cxd6 {[%clk 0:03:02.4]} 6. Nc3 {[%clk 0:03:02.9]} 6... g6 {[%clk
0:03:03.9]} 7. Be3 {[%clk 0:03:01.5]} 7... Bg7 {[%clk 0:03:05.2]} 8. Nf3 {[%clk
0:03:02.7]} 8... O-O {[%clk 0:03:06.6]} 9. b3 {[%clk 0:03:00.9]} 9... Bg4 {[%clk
0:03:06.9]} 10. Be2 {[%clk 0:02:58.4]} 10... Nc6 {[%clk 0:03:07]} 11. Rc1 {[%clk
0:02:56.9]} 11... e5 {[%clk 0:03:05.8]} 12. dxe5 {[%clk 0:02:43.8]} 12... dxe5
{[%clk 0:03:05.9]} 13. O-O {[%clk 0:02:44]} 13... Nd4 {[%clk 0:02:47.4]} 14.
Bxd4 {[%clk 0:01:53.4]} 14... exd4 {[%clk 0:02:47.4]} 15. Nxd4 {[%clk
0:01:51.1]} 15... Bxe2 {[%clk 0:02:04.6]} 16. Ndxe2 {[%clk 0:01:51.1]} 16... Qg5
{[%clk 0:02:00.4]} 17. Ng3 {[%clk 0:01:39.6]} 17... Rad8 {[%clk 0:01:58.1]} 18.
Qc2 {[%clk 0:01:29.1]} 18... Rd2 {[%clk 0:01:42.3]} 19. Qe4 {[%clk 0:01:04.3]}
19... Bxc3 {[%clk 0:01:35.3]} 20. Rxc3 {[%clk 0:01:01.4]} 20... Rxa2 {[%clk
0:01:36.4]} 21. Qxb7 {[%clk 0:00:58]} 21... h5 {[%clk 0:01:27.5]} 22. c5 {[%clk
0:00:56.3]} 22... Nd5 {[%clk 0:01:24.7]} 23. Ne4 {[%clk 0:00:46.1]} 23... Nxc3
{[%clk 0:01:00.7]} 24. Nxg5 {[%clk 0:00:40]} 24... Ne2+ {[%clk 0:00:50.6]} 25.
Kh1 {[%clk 0:00:38.3]} 25... Nf4 {[%clk 0:00:48.8]} 26. c6 {[%clk 0:00:34.2]}
26... Re8 {[%clk 0:00:39.1]} 27. Qxf7+ {[%clk 0:00:32.9]} 1-0

[Event "*** Qualifier 3: Titled Tuesday 3|2 Blitz"]
[Site "Chess.com"]
[Date "2017.04.18"]
[Round "2"]
[White "FelixBlohberger"]
[Black "VMikhalevski"]
[Result "0-1"]
[WhiteElo "2246"]
[BlackElo "2556"]
[TimeControl "180+2"]
[EndTime "13:22:49 PDT"]
[Termination "VMikhalevski won by resignation"]

1. c4 {[%clk 0:03:02]} 1... e5 {[%clk 0:02:57.3]} 2. Nc3 {[%clk 0:02:54.4]} 2...
Bb4 {[%clk 0:02:57.4]} 3. Qc2 {[%clk 0:02:38]} 3... Nf6 {[%clk 0:02:54.2]} 4. a3
{[%clk 0:02:36.9]} 4... Bxc3 {[%clk 0:02:54.3]} 5. Qxc3 {[%clk 0:02:38.8]} 5...
Nc6 {[%clk 0:02:55.4]} 6. e3 {[%clk 0:02:37.8]} 6... d5 {[%clk 0:02:54.3]} 7.
cxd5 {[%clk 0:02:36.5]} 7... Nxd5 {[%clk 0:02:54.9]} 8. Qc2 {[%clk 0:02:37.9]}
8... a6 {[%clk 0:02:53.3]} 9. Nf3 {[%clk 0:02:38.7]} 9... O-O {[%clk 0:02:53.6]}
10. d3 {[%clk 0:02:37.3]} 10... Kh8 {[%clk 0:02:51]} 11. Be2 {[%clk 0:02:38.2]}
11... f5 {[%clk 0:02:51.6]} 12. O-O {[%clk 0:02:39.1]} 12... Be6 {[%clk
0:02:50.8]} 13. b4 {[%clk 0:02:39.9]} 13... Qf6 {[%clk 0:02:49.1]} 14. Bb2
{[%clk 0:02:41.1]} 14... Rad8 {[%clk 0:02:47.9]} 15. Rac1 {[%clk 0:02:41.1]}
15... f4 {[%clk 0:02:43.3]} 16. e4 {[%clk 0:02:37.8]} 16... Nde7 {[%clk
0:02:41.6]} 17. Qc5 {[%clk 0:02:37.7]} 17... Ng6 {[%clk 0:02:41.3]} 18. Rfd1
{[%clk 0:01:43.4]} 18... Bg4 {[%clk 0:02:41.4]} 19. d4 {[%clk 0:01:40.8]} 19...
Bxf3 {[%clk 0:02:38.9]} 20. dxe5 {[%clk 0:01:41]} 20... Ngxe5 {[%clk 0:02:35]}
21. Bxe5 {[%clk 0:01:22.8]} 21... Nxe5 {[%clk 0:02:29.7]} 22. Bxf3 {[%clk
0:01:23.6]} 22... c6 {[%clk 0:02:27.6]} 23. Qb6 {[%clk 0:01:18.4]} 23... Qe7
{[%clk 0:02:24.4]} 24. a4 {[%clk 0:01:11.7]} 24... h6 {[%clk 0:02:20.1]} 25. b5
{[%clk 0:01:10.5]} 25... Rxd1+ {[%clk 0:02:16]} 26. Rxd1 {[%clk 0:01:10.2]}
26... axb5 {[%clk 0:02:16.8]} 27. axb5 {[%clk 0:01:11.2]} 27... c5 {[%clk
0:02:15.2]} 28. Rd5 {[%clk 0:00:27.3]} 28... Rc8 {[%clk 0:02:08.7]} 29. h3
{[%clk 0:00:11.2]} 29... c4 {[%clk 0:02:04.3]} 30. Rxe5 {[%clk 0:00:12.5]} 30...
Qxe5 {[%clk 0:02:03.4]} 31. Qxb7 {[%clk 0:00:13.9]} 31... Qc7 {[%clk 0:01:59]}
32. Qd5 {[%clk 0:00:03.3]} 32... c3 {[%clk 0:01:59.3]} 33. e5 {[%clk 0:00:04.2]}
33... c2 {[%clk 0:01:59.8]} 34. Kh2 {[%clk 0:00:05.7]} 34... c1=Q {[%clk
0:01:59.2]} 35. e6 {[%clk 0:00:07.2]} 35... Q1c5 {[%clk 0:01:58.5]} 36. Qe4
{[%clk 0:00:08.2]} 36... Q7e5 {[%clk 0:01:57.3]} 37. Qg6 {[%clk 0:00:09.3]}
37... Qf5 {[%clk 0:01:53.2]} 0-1

[Event "*** Qualifier 3: Titled Tuesday 3|2 Blitz"]
[Site "Chess.com"]
[Date "2017.04.18"]
[Round "2"]
[White "proxy6"]
[Black "Robin-Side"]
[Result "1-0"]
[WhiteElo "2195"]
[BlackElo "2328"]
[TimeControl "180+2"]
[EndTime "13:22:53 PDT"]
[Termination "proxy6 won by resignation"]

1. e4 {[%clk 0:03:02]} 1... c5 {[%clk 0:03:00.8]} 2. Nf3 {[%clk 0:03:02.4]} 2...
Nc6 {[%clk 0:03:02.2]} 3. d4 {[%clk 0:03:03.6]} 3... cxd4 {[%clk 0:03:04.1]} 4.
Nxd4 {[%clk 0:03:05.4]} 4... e5 {[%clk 0:03:05.4]} 5. Nb5 {[%clk 0:03:06]} 5...
d6 {[%clk 0:03:06.4]} 6. N1c3 {[%clk 0:03:02.6]} 6... a6 {[%clk 0:03:07.4]} 7.
Na3 {[%clk 0:03:03.2]} 7... b5 {[%clk 0:03:09]} 8. Nd5 {[%clk 0:03:03.7]} 8...
Nge7 {[%clk 0:03:10.4]} 9. c4 {[%clk 0:02:56.4]} 9... Nxd5 {[%clk 0:03:10.9]}
10. exd5 {[%clk 0:02:52.2]} 10... Nd4 {[%clk 0:03:10.4]} 11. Nc2 {[%clk
0:02:44.8]} 11... Nxc2+ {[%clk 0:02:48.1]} 12. Qxc2 {[%clk 0:02:46.7]} 12...
bxc4 {[%clk 0:02:48.5]} 13. Bxc4 {[%clk 0:02:43.9]} 13... Be7 {[%clk 0:02:49.9]}
14. O-O {[%clk 0:02:33.2]} 14... O-O {[%clk 0:02:50.7]} 15. b4 {[%clk
0:02:21.9]} 15... Bb7 {[%clk 0:02:45.8]} 16. Bb2 {[%clk 0:02:21.1]} 16... Rc8
{[%clk 0:02:44.3]} 17. Qb3 {[%clk 0:02:20.9]} 17... Bg5 {[%clk 0:02:34.7]} 18.
Rfd1 {[%clk 0:02:15.1]} 18... Qf6 {[%clk 0:02:19.1]} 19. Rd3 {[%clk 0:02:10.2]}
19... Qf4 {[%clk 0:01:51.9]} 20. Rc3 {[%clk 0:01:59.7]} 20... Qh4 {[%clk
0:01:37.7]} 21. Rd1 {[%clk 0:01:34.1]} 21... Qh6 {[%clk 0:01:28.8]} 22. Rh3
{[%clk 0:01:28.5]} 22... Qf6 {[%clk 0:01:28.4]} 23. Qd3 {[%clk 0:01:22.4]} 23...
g6 {[%clk 0:01:25.1]} 24. a3 {[%clk 0:00:45.3]} 24... Qf4 {[%clk 0:01:19.5]} 25.
Bxa6 {[%clk 0:00:32.6]} 25... Bxa6 {[%clk 0:01:18.4]} 26. Qxa6 {[%clk
0:00:34.5]} 26... Rc2 {[%clk 0:01:06.2]} 27. Rf3 {[%clk 0:00:33.9]} 27... Qe4
{[%clk 0:01:02.4]} 28. Bc3 {[%clk 0:00:31.3]} 28... Qxd5 {[%clk 0:00:49.6]} 29.
Rxd5 {[%clk 0:00:31.1]} 29... Rc1+ {[%clk 0:00:49.4]} 30. Qf1 {[%clk 0:00:32.5]}
30... Rxf1+ {[%clk 0:00:47.7]} 31. Kxf1 {[%clk 0:00:34.4]} 1-0

[Event "*** Qualifier 3: Titled Tuesday 3|2 Blitz"]
[Site "Chess.com"]
[Date "2017.04.18"]
[Round "2"]
[White "PowerThinking2650"]
[Black "Vamostodorecto"]
[Result "0-1"]
[WhiteElo "2222"]
[BlackElo "2385"]
[TimeControl "180+2"]
[EndTime "13:22:55 PDT"]
[Termination "Vamostodorecto won by resignation"]

1. e4 {[%clk 0:03:02]} 1... g6 {[%clk 0:02:59.8]} 2. Bc4 {[%clk 0:03:01.1]} 2...
Bg7 {[%clk 0:03:00.2]} 3. Qf3 {[%clk 0:03:01.7]} 3... e6 {[%clk 0:02:59.2]} 4.
Ne2 {[%clk 0:03:00.9]} 4... a6 {[%clk 0:02:51]} 5. d4 {[%clk 0:02:59.3]} 5... b5
{[%clk 0:02:50.9]} 6. e5 {[%clk 0:02:47.9]} 6... bxc4 {[%clk 0:02:41.8]} 7. Qxa8
{[%clk 0:02:46.5]} 7... Nc6 {[%clk 0:02:43]} 8. Na3 {[%clk 0:02:27.6]} 8... Nge7
{[%clk 0:02:37.9]} 9. Bg5 {[%clk 0:02:12.9]} 9... O-O {[%clk 0:02:35.4]} 10.
Nxc4 {[%clk 0:02:06.9]} 10... h6 {[%clk 0:02:34.9]} 11. Bd2 {[%clk 0:01:20.9]}
11... Nd5 {[%clk 0:02:34.6]} 12. O-O {[%clk 0:01:15]} 12... Nb6 {[%clk
0:02:24.5]} 13. Nxb6 {[%clk 0:01:15.4]} 13... cxb6 {[%clk 0:02:26.4]} 14. a4
{[%clk 0:00:29.3]} 14... Qc7 {[%clk 0:02:14.3]} 15. a5 {[%clk 0:00:28.8]} 15...
Bb7 {[%clk 0:01:49.8]} 16. axb6 {[%clk 0:00:29.7]} 16... Qxb6 {[%clk 0:01:51.7]}
17. Qxf8+ {[%clk 0:00:23.1]} 17... Bxf8 {[%clk 0:01:53.6]} 18. Bc3 {[%clk
0:00:20.9]} 18... Ne7 {[%clk 0:01:49.7]} 19. b3 {[%clk 0:00:15.5]} 19... Qc6
{[%clk 0:01:48.1]} 20. f3 {[%clk 0:00:09.3]} 20... Nd5 {[%clk 0:01:46.7]} 21.
Ba5 {[%clk 0:00:06.6]} 21... Qxc2 {[%clk 0:01:45.8]} 22. Ng3 {[%clk 0:00:07.5]}
22... Qxb3 {[%clk 0:01:42.7]} 23. Ne4 {[%clk 0:00:07.7]} 23... Qe3+ {[%clk
0:01:41]} 24. Kh1 {[%clk 0:00:08.4]} 24... Qxd4 {[%clk 0:01:37.5]} 25. Rad1
{[%clk 0:00:07.5]} 25... Qxe5 {[%clk 0:01:36.8]} 26. Rfe1 {[%clk 0:00:08]} 26...
Qf4 {[%clk 0:01:23.3]} 27. Rf1 {[%clk 0:00:05.9]} 27... f5 {[%clk 0:01:16.7]}
28. g3 {[%clk 0:00:05.8]} 28... Qe5 {[%clk 0:01:11.3]} 0-1

[Event "*** Qualifier 3: Titled Tuesday 3|2 Blitz"]
[Site "Chess.com"]
[Date "2017.04.18"]
[Round "2"]
[White "maciek_92"]
[Black "DiogenesSinopeus"]
[Result "1-0"]
[WhiteElo "2532"]
[BlackElo "2275"]
[TimeControl "180+2"]
[EndTime "13:23:02 PDT"]
[Termination "maciek_92 won by resignation"]

1. c4 {[%clk 0:03:02]} 1... c5 {[%clk 0:03:00.8]} 2. Nc3 {[%clk 0:03:01.4]} 2...
Nc6 {[%clk 0:03:01.7]} 3. Nf3 {[%clk 0:03:03]} 3... Nd4 {[%clk 0:03:02.5]} 4. e3
{[%clk 0:02:58.6]} 4... Nxf3+ {[%clk 0:03:03.5]} 5. Qxf3 {[%clk 0:03:00.5]} 5...
g6 {[%clk 0:03:05.1]} 6. h4 {[%clk 0:03:00.1]} 6... h5 {[%clk 0:03:02.2]} 7. d4
{[%clk 0:02:44.7]} 7... Bg7 {[%clk 0:03:01.6]} 8. Qd1 {[%clk 0:02:43.2]} 8...
Nh6 {[%clk 0:02:47.4]} 9. d5 {[%clk 0:02:42.4]} 9... d6 {[%clk 0:02:35.7]} 10.
e4 {[%clk 0:02:38.1]} 10... O-O {[%clk 0:02:34.6]} 11. f3 {[%clk 0:02:33.5]}
11... Bd7 {[%clk 0:02:27.7]} 12. Bg5 {[%clk 0:02:32.8]} 12... a6 {[%clk
0:02:09.5]} 13. Qd2 {[%clk 0:02:33.7]} 13... Kh7 {[%clk 0:02:11.1]} 14. a4
{[%clk 0:02:29.3]} 14... b6 {[%clk 0:02:04.1]} 15. Be2 {[%clk 0:02:25.9]} 15...
Rb8 {[%clk 0:02:02.6]} 16. g4 {[%clk 0:02:19.9]} 16... f6 {[%clk 0:01:49]} 17.
gxh5 {[%clk 0:02:10.3]} 17... gxh5 {[%clk 0:01:50.2]} 18. Be3 {[%clk 0:02:08.3]}
18... f5 {[%clk 0:01:39.6]} 19. O-O-O {[%clk 0:01:59.8]} 19... b5 {[%clk
0:01:29.4]} 20. Rdg1 {[%clk 0:01:58]} 20... Rf6 {[%clk 0:01:12.9]} 21. Bd3
{[%clk 0:01:44.5]} 21... bxc4 {[%clk 0:01:09.5]} 22. Bb1 {[%clk 0:01:31.7]}
22... Qb6 {[%clk 0:00:49.9]} 23. Rh2 {[%clk 0:01:30.1]} 23... Rg8 {[%clk
0:00:32.6]} 24. Rhg2 {[%clk 0:01:30.3]} 24... Be8 {[%clk 0:00:26.8]} 25. exf5
{[%clk 0:01:14.5]} 25... Bf7 {[%clk 0:00:18.6]} 26. Ne4 {[%clk 0:01:12.9]} 26...
Nxf5 {[%clk 0:00:04.4]} 27. Nxf6+ {[%clk 0:01:12.1]} 27... Bxf6 {[%clk 0:00:03]}
28. Bxf5+ {[%clk 0:01:13.4]} 28... Kh8 {[%clk 0:00:03.7]} 29. Rxg8+ {[%clk
0:01:14.4]} 29... Bxg8 {[%clk 0:00:05.2]} 30. Bd4 {[%clk 0:01:08.9]} 30... Qb3
{[%clk 0:00:05.5]} 31. Qh6+ {[%clk 0:01:10.1]} 1-0

[Event "*** Qualifier 3: Titled Tuesday 3|2 Blitz"]
[Site "Chess.com"]
[Date "2017.04.18"]
[Round "2"]
[White "GamayevOleg"]
[Black "fastestmindalive"]
[Result "1/2-1/2"]
[WhiteElo "2402"]
[BlackElo "2394"]
[TimeControl "180+2"]
[EndTime "13:23:07 PDT"]
[Termination "Game drawn by repetition"]

1. d3 {[%clk 0:03:01.9]} 1... Nf6 {[%clk 0:02:53.1]} 2. e4 {[%clk 0:03:03.8]}
2... Nc6 {[%clk 0:02:53.9]} 3. Nf3 {[%clk 0:03:04.9]} 3... e5 {[%clk 0:02:55.2]}
4. Be2 {[%clk 0:03:06]} 4... Bc5 {[%clk 0:02:55.5]} 5. O-O {[%clk 0:03:06.6]}
5... O-O {[%clk 0:02:56.8]} 6. c3 {[%clk 0:03:08]} 6... d5 {[%clk 0:02:57.4]} 7.
exd5 {[%clk 0:03:08.7]} 7... Nxd5 {[%clk 0:02:58]} 8. Nxe5 {[%clk 0:03:09.1]}
8... Nxe5 {[%clk 0:02:57.7]} 9. d4 {[%clk 0:03:10.4]} 9... Bd6 {[%clk
0:02:57.4]} 10. dxe5 {[%clk 0:03:11.8]} 10... Bxe5 {[%clk 0:02:59.3]} 11. Bf3
{[%clk 0:03:13.1]} 11... Be6 {[%clk 0:02:56.8]} 12. Re1 {[%clk 0:03:13.7]} 12...
Bd6 {[%clk 0:02:52.7]} 13. Nd2 {[%clk 0:03:13.4]} 13... Nf6 {[%clk 0:02:49.6]}
14. Ne4 {[%clk 0:03:12.6]} 14... Nxe4 {[%clk 0:02:50.6]} 15. Bxe4 {[%clk
0:03:14.1]} 15... Qh4 {[%clk 0:02:46.3]} 16. g3 {[%clk 0:03:11.7]} 16... Qf6
{[%clk 0:02:46.1]} 17. Bxb7 {[%clk 0:03:07.5]} 17... Rab8 {[%clk 0:02:47.3]} 18.
Qf3 {[%clk 0:03:07.2]} 18... Qe7 {[%clk 0:02:35.1]} 19. Be4 {[%clk 0:03:01.1]}
19... g6 {[%clk 0:02:11.1]} 20. b3 {[%clk 0:02:56]} 20... Qd7 {[%clk 0:02:06.6]}
21. Bh6 {[%clk 0:02:53.4]} 21... Rfe8 {[%clk 0:01:50.7]} 22. Rad1 {[%clk
0:02:46.9]} 22... Qe7 {[%clk 0:01:50.1]} 23. h4 {[%clk 0:02:41.1]} 23... f5
{[%clk 0:01:26.5]} 24. Bd5 {[%clk 0:02:36.9]} 24... Bxd5 {[%clk 0:01:28.1]} 25.
Qxd5+ {[%clk 0:02:37.3]} 25... Qf7 {[%clk 0:01:29.7]} 26. Rxe8+ {[%clk
0:02:34.8]} 26... Rxe8 {[%clk 0:01:30.6]} 27. Qxf7+ {[%clk 0:02:33.9]} 27...
Kxf7 {[%clk 0:01:32.5]} 28. Be3 {[%clk 0:02:35.2]} 28... a5 {[%clk 0:01:32.4]}
29. Rd5 {[%clk 0:02:35.6]} 29... a4 {[%clk 0:01:26.8]} 30. bxa4 {[%clk
0:02:35.7]} 30... Ke6 {[%clk 0:01:27.3]} 31. Rb5 {[%clk 0:02:31.5]} 31... Ra8
{[%clk 0:01:26]} 32. a5 {[%clk 0:02:30.9]} 32... c6 {[%clk 0:01:27.3]} 33. Rb6
{[%clk 0:02:27.5]} 33... Kd5 {[%clk 0:00:51.9]} 34. Rb7 {[%clk 0:02:13.7]} 34...
Rxa5 {[%clk 0:00:51]} 35. Rxh7 {[%clk 0:02:09.5]} 35... Be5 {[%clk 0:00:46.3]}
36. Rd7+ {[%clk 0:02:04]} 36... Ke6 {[%clk 0:00:44.6]} 37. Rd3 {[%clk
0:02:02.6]} 37... Rxa2 {[%clk 0:00:45.5]} 38. Bd4 {[%clk 0:02:03.5]} 38... Bxd4
{[%clk 0:00:32.9]} 39. Rxd4 {[%clk 0:02:04.3]} 39... c5 {[%clk 0:00:29.5]} 40.
Rd3 {[%clk 0:02:03.3]} 40... Ke5 {[%clk 0:00:27.4]} 41. Kg2 {[%clk 0:01:59.4]}
41... c4 {[%clk 0:00:23.6]} 42. Re3+ {[%clk 0:01:59.9]} 42... Kf6 {[%clk
0:00:24.8]} 43. Kf3 {[%clk 0:01:57.4]} 43... Rd2 {[%clk 0:00:25.8]} 44. Re2
{[%clk 0:01:57.7]} 44... Rd3+ {[%clk 0:00:26.5]} 45. Re3 {[%clk 0:01:59.2]}
45... Rd2 {[%clk 0:00:28.1]} 46. Kg2 {[%clk 0:02:00.5]} 46... Rc2 {[%clk
0:00:26.8]} 47. Kf3 {[%clk 0:02:00.2]} 47... Rd2 {[%clk 0:00:27.4]} 1/2-1/2